fUST/lending_fUST_20260513
["ID","MTS","AMOUNT","RATE_DAILY","PERIOD"]
[422191008,1778670823000,167.2730587,4.551e-05,2]
[422191042,1778671831000,-605.52935036,7.978e-05,2]
[422191056,1778671832000,-976.25152329,7.978e-05,2]
[422191218,1778671840000,-300.0,9.179e-05,2]
[422191205,1778671840000,-5000.0,8.059e-05,2]
[422191206,1778671840000,-1200.0,8.139e-05,2]
[422191207,1778671840000,-300.0,8.18e-05,2]
[422191204,1778671840000,-3418.21912635,7.978e-05,2]
[422191209,1778671840000,-300.0,8.18e-05,2]
[422191219,1778671840000,-14.26573321,9.179e-05,2]
[422191208,1778671840000,-300.0,8.18e-05,2]
[422191211,1778671840000,-411.79885595,8.181e-05,2]
[422191214,1778671840000,-2716.83,9e-05,2]
[422191212,1778671840000,-1680.0,8.953e-05,2]
[422191215,1778671840000,-300.0,9.179e-05,2]
[422191213,1778671840000,-420.0,8.998e-05,2]
[422191217,1778671840000,-300.0,9.179e-05,2]
[422191216,1778671840000,-300.0,9.179e-05,2]
[422191210,1778671840000,-300.0,8.18e-05,2]
[422191239,1778671841000,-316.54890654,9.362e-05,2]
[422191243,1778671841000,-537.6845,9.742e-05,2]
[422191233,1778671841000,-300.0,9.179e-05,2]
[422191234,1778671841000,-300.0,9.179e-05,2]
[422191236,1778671841000,-300.0,9.179e-05,2]
[422191244,1778671841000,-557.5788265,9.797e-05,2]
[422191229,1778671841000,-300.0,9.179e-05,2]
[422191245,1778671841000,-578.20924308,9.852e-05,2]
[422191232,1778671841000,-300.0,9.179e-05,2]
[422191231,1778671841000,-300.0,9.179e-05,2]
[422191230,1778671841000,-300.0,9.179e-05,2]
[422191228,1778671841000,-285.73426679,9.179e-05,2]
[422191238,1778671841000,-300.0,9.179e-05,2]
[422191241,1778671841000,-456.4437056,9.482e-05,2]
[422191237,1778671841000,-300.0,9.179e-05,2]
[422191235,1778671841000,-300.0,9.179e-05,2]
[422191240,1778671841000,-283.45109346,9.362e-05,2]
[422191258,1778671841000,-53959.28760292,0.0001,2]
[422191252,1778671841000,-151.0,9.994e-05,2]
[422191255,1778671841000,-354.40320481,9.999e-05,2]
[422191254,1778671841000,-537.6845,9.994e-05,2]
[422191257,1778671841000,-5387.5485764,0.0001,2]
[422191250,1778671841000,-171.74648467,9.95e-05,2]
[422191253,1778671841000,-162.380719,9.994e-05,2]
[422191248,1778671841000,-171.74648469,9.9e-05,2]
[422191251,1778671841000,-621.78829552,9.962e-05,2]
[422191242,1778671841000,-182.185,9.604e-05,2]
[422191247,1778671841000,-18921.68248043,9.9e-05,2]
[422191259,1778671841000,-57634.34385343,0.0001,2]
[422191249,1778671841000,-599.60298507,9.907e-05,2]
[422191246,1778671841000,-5230.0,9.892e-05,2]
[422191256,1778671841000,-155.0,9.999e-05,2]
[422191267,1778671843000,-5432.59091391,0.0001,2]
[422191266,1778671843000,-2682.75126377,0.0001,2]
[422191263,1778671843000,-401.47571568,0.0001,2]
[422191264,1778671843000,-10980.6594506,0.0001,2]
[422191262,1778671843000,-302.62139999,0.0001,2]
[422191265,1778671843000,-1335.28898699,0.0001,2]
[422191270,1778671846000,-17399.52406791,0.0001,2]
[422191275,1778671846000,-97442.93744851,0.0001,2]
[422191273,1778671846000,-6692.46837274,0.0001,2]
[422191274,1778671846000,-3875.2381898,0.0001,2]
[422191272,1778671846000,-3385.76116154,0.0001,2]
[422191276,1778671892000,-1573.79292292,9.8e-05,2]
[422191288,1778672800000,5000.0,0.00014,30]
[422191325,1778673032000,-3889.97075792,8.281e-05,2]
[422191336,1778673032000,-809.83634132,8.281e-05,2]
[422191321,1778673032000,-207.0359681,8.019e-05,2]
[422191323,1778673032000,-5000.0,8.198e-05,2]
[422191469,1778673039000,-300.0,8.749e-05,2]
[422191470,1778673039000,-5432.90052902,8.749e-05,2]
[422191471,1778673039000,-600.0,8.923e-05,2]
[422191473,1778673039000,-300.0,9.433e-05,2]
[422191481,1778673039000,-204.29986163,9.64e-05,2]
[422191482,1778673039000,-152.0,9.673e-05,2]
[422191472,1778673039000,-1680.0,9.2e-05,2]
[422191474,1778673039000,-420.0,9.433e-05,2]
[422191475,1778673039000,-300.0,9.433e-05,2]
[422191476,1778673039000,-1416.1952064,9.5e-05,2]
[422191479,1778673039000,-151.5,9.64e-05,2]
[422191480,1778673039000,-151.5,9.64e-05,2]
[422191483,1778673039000,-179.391989,9.673e-05,2]
[422191485,1778673039000,-500.0,9.691e-05,2]
[422191486,1778673039000,-500.0,9.691e-05,2]
[422191488,1778673039000,-500.0,9.691e-05,2]
[422191490,1778673039000,-500.0,9.691e-05,2]
[422191493,1778673039000,-500.0,9.691e-05,2]
[422191467,1778673039000,-300.0,8.749e-05,2]
[422191477,1778673039000,-73734.37428073,9.594e-05,2]
[422191465,1778673039000,-300.0,8.749e-05,2]
[422191454,1778673039000,-300.0,8.749e-05,2]
[422191468,1778673039000,-300.0,8.749e-05,2]
[422191445,1778673039000,-3418.21912635,8.198e-05,2]
[422191447,1778673039000,-1200.0,8.364e-05,2]
[422191446,1778673039000,-300.19290076,8.281e-05,2]
[422191448,1778673039000,-300.0,8.575e-05,2]
[422191450,1778673039000,-300.0,8.575e-05,2]
[422191492,1778673039000,-500.0,9.691e-05,2]
[422191460,1778673039000,-300.0,8.749e-05,2]
[422191449,1778673039000,-300.0,8.575e-05,2]
[422191452,1778673039000,-415.39027108,8.578e-05,2]
[422191453,1778673039000,-1413.7931001,8.621e-05,2]
[422191461,1778673039000,-300.0,8.749e-05,2]
[422191451,1778673039000,-300.0,8.575e-05,2]
[422191456,1778673039000,-300.0,8.749e-05,2]
[422191458,1778673039000,-300.0,8.749e-05,2]
[422191459,1778673039000,-300.0,8.749e-05,2]
[422191455,1778673039000,-300.0,8.749e-05,2]
[422191457,1778673039000,-300.0,8.749e-05,2]
[422191462,1778673039000,-300.0,8.749e-05,2]
[422191463,1778673039000,-300.0,8.749e-05,2]
[422191466,1778673039000,-300.0,8.749e-05,2]
[422191484,1778673039000,-500.0,9.691e-05,2]
[422191478,1778673039000,-151.5,9.64e-05,2]
[422191487,1778673039000,-500.0,9.691e-05,2]
[422191518,1778673039000,-500.0,9.693e-05,2]
[422191515,1778673039000,-500.0,9.693e-05,2]
[422191521,1778673039000,-28134.964952,9.694e-05,2]
[422191516,1778673039000,-568.24611518,9.693e-05,2]
[422191517,1778673039000,-500.0,9.693e-05,2]
[422191519,1778673039000,-500.0,9.693e-05,2]
[422191524,1778673039000,-34284.42164934,9.694e-05,2]
[422191533,1778673039000,-151.217223,9.794e-05,2]
[422191526,1778673039000,-1751.73676825,9.694e-05,2]
[422191532,1778673039000,-557.5788265,9.774e-05,2]
[422191535,1778673039000,-720.0,9.815e-05,2]
[422191534,1778673039000,-179.39198899,9.806e-05,2]
[422191537,1778673039000,-599.60298507,9.884e-05,2]
[422191536,1778673039000,-578.20924308,9.829e-05,2]
[422191538,1778673039000,-153.768,9.914e-05,2]
[422191530,1778673039000,-537.6845,9.719e-05,2]
[422191531,1778673039000,-297.2682,9.725e-05,2]
[422191528,1778673039000,-4878.26145766,9.694e-05,2]
[422191489,1778673039000,-500.0,9.691e-05,2]
[422191511,1778673039000,-500.0,9.693e-05,2]
[422191520,1778673039000,-12148.25294487,9.694e-05,2]
[422191522,1778673039000,-91745.26963469,9.694e-05,2]
[422191514,1778673039000,-500.0,9.693e-05,2]
[422191491,1778673039000,-500.0,9.691e-05,2]
[422191496,1778673039000,-500.0,9.691e-05,2]
[422191494,1778673039000,-489.79078681,9.691e-05,2]
[422191495,1778673039000,-500.0,9.691e-05,2]
[422191497,1778673039000,-500.0,9.691e-05,2]
[422191499,1778673039000,-500.0,9.691e-05,2]
[422191498,1778673039000,-500.0,9.691e-05,2]
[422191513,1778673039000,-500.0,9.693e-05,2]
[422191501,1778673039000,-500.0,9.691e-05,2]
[422191502,1778673039000,-252.29797079,9.693e-05,2]
[422191500,1778673039000,-500.0,9.691e-05,2]
[422191509,1778673039000,-500.0,9.693e-05,2]
[422191512,1778673039000,-500.0,9.693e-05,2]
[422191539,1778673039000,-1582.59936315,9.915e-05,2]
[422191507,1778673039000,-500.0,9.693e-05,2]
[422191505,1778673039000,-500.0,9.693e-05,2]
[422191510,1778673039000,-500.0,9.693e-05,2]
[422191508,1778673039000,-500.0,9.693e-05,2]
[422191504,1778673039000,-500.0,9.693e-05,2]
[422191503,1778673039000,-500.0,9.693e-05,2]
[422191506,1778673039000,-500.0,9.693e-05,2]
[422191545,1778673040000,-813.23633527,9.915e-05,2]
[422191546,1778673040000,-6718.501097,9.915e-05,2]
[422191544,1778673040000,-1201.70836448,9.915e-05,2]
[422191542,1778673040000,-502.54879605,9.915e-05,2]
[422191543,1778673040000,-694.55483131,9.915e-05,2]
[422191553,1778673043000,-8816.33653182,9.915e-05,2]
[422191551,1778673043000,-1884.34025907,9.816e-05,2]
[422191556,1778673043000,-2408.86898391,9.915e-05,2]
[422191557,1778673043000,-657.5484785,9.915e-05,2]
[422191558,1778673043000,-7649.64680441,9.915e-05,2]
[422191555,1778673043000,-9742.05342553,9.915e-05,2]
[422191559,1778673043000,-552.0,9.915e-05,2]
[422191569,1778673046000,-7199.29956112,9.915e-05,2]
[422191568,1778673046000,-1076.27106264,9.915e-05,2]
[422191570,1778673047000,-77657.8535349,9.915e-05,2]
[422191575,1778673193000,3000.0,0.000118,30]
[422191576,1778673194000,3000.0,0.0001181,30]
[422191579,1778673195000,3000.0,0.0001184,30]
[422191578,1778673195000,3000.0,0.0001183,30]
[422191577,1778673195000,3000.0,0.0001182,30]
[422191580,1778673196000,3000.0,0.0001185,30]
[422191581,1778673196000,3000.0,0.0001186,30]
[422191582,1778673197000,3000.0,0.0001187,30]
[422191583,1778673197000,3000.0,0.0001188,30]
[422191586,1778673198000,5094.404895,0.0001191,30]
[422191585,1778673198000,3000.0,0.000119,30]
[422191584,1778673198000,3000.0,0.0001189,30]
[422191590,1778673674000,-5000.0,9.115e-05,2]
[422191591,1778673690000,-189.06438381,9.207e-05,2]
[422191592,1778673708000,-3367.2428914,9.207e-05,2]
[422191593,1778673726000,-4019.8219398,8.745e-05,2]
[422191594,1778673743000,-161.63868993,8.745e-05,2]
[422191596,1778673761000,-501.9807354,8.658e-05,2]
[422191597,1778673778000,-2716.83,9.3e-05,2]
[422191601,1778673976000,240.0,0.00014,30]
[422191635,1778674232000,-384.768375,7.599e-05,2]
[422191705,1778674238000,-300.0,8.517e-05,2]
[422191707,1778674238000,-29103.1303568,8.518e-05,2]
[422191697,1778674238000,-300.0,7.751e-05,2]
[422191699,1778674238000,-300.0,7.751e-05,2]
[422191693,1778674238000,-300.0,7.751e-05,2]
[422191691,1778674238000,-300.0,7.751e-05,2]
[422191689,1778674238000,-300.0,7.751e-05,2]
[422191687,1778674238000,-300.0,7.751e-05,2]
[422191695,1778674238000,-300.0,7.751e-05,2]
[422191685,1778674238000,-300.0,7.751e-05,2]
[422191677,1778674238000,-300.0,7.751e-05,2]
[422191683,1778674238000,-300.0,7.751e-05,2]
[422191681,1778674238000,-300.0,7.751e-05,2]
[422191675,1778674238000,-300.0,7.751e-05,2]
[422191671,1778674238000,-300.0,7.751e-05,2]
[422191673,1778674238000,-300.0,7.751e-05,2]
[422191669,1778674238000,-9027.04552284,7.6e-05,2]
[422191667,1778674238000,-815.231625,7.599e-05,2]
[422191701,1778674238000,-427.48835135,8.173e-05,2]
[422191679,1778674238000,-300.0,7.751e-05,2]
[422191708,1778674238000,-600.0,8.687e-05,2]
[422191738,1778674238000,-500.0,9.799e-05,2]
[422191703,1778674238000,-1680.0,8.359e-05,2]
[422191704,1778674238000,-300.0,8.517e-05,2]
[422191742,1778674238000,-500.0,9.799e-05,2]
[422191736,1778674238000,-259.80699624,9.799e-05,2]
[422191740,1778674238000,-500.0,9.799e-05,2]
[422191746,1778674238000,-500.0,9.799e-05,2]
[422191735,1778674238000,-153.768,9.702e-05,2]
[422191727,1778674238000,-151.0,9.496e-05,2]
[422191725,1778674238000,-151.0,9.496e-05,2]
[422191729,1778674238000,-720.0,9.556e-05,2]
[422191744,1778674238000,-220.64673228,9.799e-05,2]
[422191722,1778674238000,-160.0,9.398e-05,2]
[422191733,1778674238000,-1563.8611194,9.69e-05,2]
[422191731,1778674238000,-8192.3553383,9.69e-05,2]
[422191720,1778674238000,-420.0,9.369e-05,2]
[422191718,1778674238000,-500.0,9.308e-05,2]
[422191716,1778674238000,-500.0,9.308e-05,2]
[422191712,1778674238000,-2351.0,9.195e-05,2]
[422191710,1778674238000,-220.00722,8.745e-05,2]
[422191714,1778674238000,-1934.36009256,9.3e-05,2]
[422191723,1778674238000,-160.0,9.398e-05,2]
[422191774,1778674239000,-347.39592474,9.799e-05,2]
[422191779,1778674239000,-500.0,9.799e-05,2]
[422191776,1778674239000,-500.0,9.799e-05,2]
[422191777,1778674239000,-375.08424083,9.799e-05,2]
[422191785,1778674239000,-500.0,9.799e-05,2]
[422191797,1778674239000,-500.0,9.799e-05,2]
[422191791,1778674239000,-500.0,9.799e-05,2]
[422191795,1778674239000,-600.0,9.799e-05,2]
[422191793,1778674239000,-500.0,9.799e-05,2]
[422191808,1778674239000,-2958.53080738,9.8e-05,2]
[422191772,1778674239000,-500.0,9.799e-05,2]
[422191787,1778674239000,-500.0,9.799e-05,2]
[422191783,1778674239000,-500.0,9.799e-05,2]
[422191748,1778674239000,-500.0,9.799e-05,2]
[422191767,1778674239000,-500.0,9.799e-05,2]
[422191768,1778674239000,-500.0,9.799e-05,2]
[422191770,1778674239000,-397.84472166,9.799e-05,2]
[422191763,1778674239000,-500.0,9.799e-05,2]
[422191761,1778674239000,-500.0,9.799e-05,2]
[422191765,1778674239000,-500.0,9.799e-05,2]
[422191755,1778674239000,-185.58313279,9.799e-05,2]
[422191750,1778674239000,-500.0,9.799e-05,2]
[422191804,1778674239000,-316951.83990715,9.8e-05,2]
[422191752,1778674239000,-500.0,9.799e-05,2]
[422191757,1778674239000,-500.0,9.799e-05,2]
[422191759,1778674239000,-500.0,9.799e-05,2]
[422191781,1778674239000,-500.0,9.799e-05,2]
[422191799,1778674239000,-500.0,9.799e-05,2]
[422191789,1778674239000,-500.0,9.799e-05,2]
[422191803,1778674239000,-450.0,9.799e-05,2]
[422191855,1778674239000,-500.0,9.999e-05,2]
[422191853,1778674239000,-458.42318332,9.999e-05,2]
[422191857,1778674239000,-500.0,9.999e-05,2]
[422191851,1778674239000,-500.0,9.999e-05,2]
[422191849,1778674239000,-500.0,9.999e-05,2]
[422191847,1778674239000,-500.0,9.999e-05,2]
[422191845,1778674239000,-500.0,9.999e-05,2]
[422191843,1778674239000,-500.0,9.999e-05,2]
[422191841,1778674239000,-500.0,9.999e-05,2]
[422191839,1778674239000,-500.0,9.999e-05,2]
[422191835,1778674239000,-258.65628069,9.93e-05,2]
[422191833,1778674239000,-151.0,9.915e-05,2]
[422191859,1778674239000,-500.0,9.999e-05,2]
[422191837,1778674239000,-500.0,9.999e-05,2]
[422191830,1778674239000,-151.0,9.915e-05,2]
[422191826,1778674239000,-1728.66341845,9.915e-05,2]
[422191828,1778674239000,-181.13821386,9.915e-05,2]
[422191831,1778674239000,-151.0,9.915e-05,2]
[422191819,1778674239000,-375.95333834,9.9e-05,2]
[422191821,1778674239000,-406.381135,9.9e-05,2]
[422191822,1778674239000,-426.821226,9.9e-05,2]
[422191861,1778674239000,-29201.37134812,0.0001,2]
[422191817,1778674239000,-236.48666776,9.9e-05,2]
[422191815,1778674239000,-2110.50195324,9.9e-05,2]
[422191812,1778674239000,-253062.09933551,9.8e-05,2]
[422191813,1778674239000,-854.39793707,9.9e-05,2]
[422191824,1778674239000,-432.59845307,9.915e-05,2]
[422191801,1778674239000,-500.0,9.799e-05,2]
[422192024,1778674241000,-5900.7571945,0.0001,2]
[422192025,1778674241000,-1917.85952668,0.0001,2]
[422192026,1778674241000,-316.73702623,0.0001,2]
[422192042,1778674246000,-5909.9078761,0.0001,2]
[422192043,1778674247000,-89223.28381958,0.0001,2]
[422192050,1778674346000,-300.0,9.83e-05,2]
[422192051,1778674346000,-28051.54549675,9.831e-05,2]
[422192049,1778674346000,-581.48379813,9.801e-05,2]
[422192048,1778674346000,-2572.13310886,9.801e-05,2]
[422192046,1778674346000,-151.0,9.496e-05,2]
[422192047,1778674346000,-430.48379813,9.648e-05,2]
[422192052,1778674358000,210.87163574,9.799e-05,2]
[422192053,1778674367000,89.12836426,9.799e-05,2]
[422192054,1778674377000,151.0,9.496e-05,2]
[422192055,1778674392000,151.0,9.496e-05,2]
[422192056,1778674394000,128.48379813,9.496e-05,2]
[422192078,1778675191000,161.85647476,0.00013925,30]
[422192213,1778675438000,-598.00402032,8.061e-05,2]
[422192214,1778675438000,-131403.120848,8.061e-05,2]
[422192215,1778675438000,-2481.09826506,8.219e-05,2]
[422192210,1778675438000,-550.62373544,8.06e-05,2]
[422192212,1778675438000,-260.82222934,8.06e-05,2]
[422192211,1778675438000,-500.0,8.06e-05,2]
[422192209,1778675438000,-500.0,8.06e-05,2]
[422192216,1778675438000,-218.8231475,8.219e-05,2]
[422192208,1778675438000,-1200.0,8.058e-05,2]
[422192206,1778675438000,-300.0,8.058e-05,2]
[422192204,1778675438000,-300.0,7.099e-05,2]
[422192202,1778675438000,-5000.0,6.958e-05,2]
[422192205,1778675438000,-421.87412217,7.418e-05,2]
[422192203,1778675438000,-1008.37737979,7.028e-05,2]
[422192207,1778675438000,-300.0,8.058e-05,2]
[422192219,1778675438000,-300.0,8.222e-05,2]
[422192230,1778675438000,-300.0,8.222e-05,2]
[422192217,1778675438000,-300.0,8.222e-05,2]
[422192218,1778675438000,-300.0,8.222e-05,2]
[422192234,1778675438000,-500.0,8.513e-05,2]
[422192232,1778675438000,-600.0,8.222e-05,2]
[422192231,1778675438000,-300.0,8.222e-05,2]
[422192233,1778675438000,-176.747651,8.457e-05,2]
[422192227,1778675438000,-300.0,8.222e-05,2]
[422192228,1778675438000,-300.0,8.222e-05,2]
[422192229,1778675438000,-300.0,8.222e-05,2]
[422192224,1778675438000,-300.0,8.222e-05,2]
[422192225,1778675438000,-300.0,8.222e-05,2]
[422192223,1778675438000,-300.0,8.222e-05,2]
[422192221,1778675438000,-300.0,8.222e-05,2]
[422192222,1778675438000,-300.0,8.222e-05,2]
[422192220,1778675438000,-300.0,8.222e-05,2]
[422192226,1778675438000,-300.0,8.222e-05,2]
[422192276,1778675439000,-151.0,9.522e-05,2]
[422192279,1778675439000,-326.7042357,9.522e-05,2]
[422192278,1778675439000,-325.8415176,9.522e-05,2]
[422192277,1778675439000,-151.0,9.522e-05,2]
[422192274,1778675439000,-325.8415176,9.522e-05,2]
[422192268,1778675439000,-456.4711948,9.496e-05,2]
[422192273,1778675439000,-218.9201658,9.522e-05,2]
[422192270,1778675439000,-456.4437056,9.496e-05,2]
[422192272,1778675439000,-151.0,9.522e-05,2]
[422192271,1778675439000,-325.8415176,9.522e-05,2]
[422192280,1778675439000,-456.4437056,9.522e-05,2]
[422192275,1778675439000,-151.0,9.522e-05,2]
[422192281,1778675439000,-456.4437056,9.522e-05,2]
[422192287,1778675439000,-325.8583785,9.564e-05,2]
[422192284,1778675439000,-212.4027386,9.564e-05,2]
[422192296,1778675439000,-164.02470756,9.726e-05,2]
[422192297,1778675439000,-151.5,9.726e-05,2]
[422192294,1778675439000,-599.60298507,9.651e-05,2]
[422192295,1778675439000,-621.78829552,9.706e-05,2]
[422192293,1778675439000,-578.20924308,9.596e-05,2]
[422192291,1778675439000,-325.8583785,9.564e-05,2]
[422192286,1778675439000,-325.8415176,9.564e-05,2]
[422192292,1778675439000,-151.0,9.564e-05,2]
[422192289,1778675439000,-325.8415176,9.564e-05,2]
[422192267,1778675439000,-151.0,9.496e-05,2]
[422192288,1778675439000,-151.0,9.564e-05,2]
[422192285,1778675439000,-325.8415176,9.564e-05,2]
[422192282,1778675439000,-557.5788265,9.541e-05,2]
[422192283,1778675439000,-2481.09826505,9.555e-05,2]
[422192290,1778675439000,-456.4437056,9.564e-05,2]
[422192269,1778675439000,-456.4711948,9.496e-05,2]
[422192260,1778675439000,-215.04220334,9.451e-05,2]
[422192266,1778675439000,-151.0,9.486e-05,2]
[422192298,1778675439000,-151.5,9.726e-05,2]
[422192238,1778675439000,-630.45788666,8.939e-05,2]
[422192236,1778675439000,-420.0,8.864e-05,2]
[422192240,1778675439000,-720.0,9.044e-05,2]
[422192239,1778675439000,-8381.987342,8.996e-05,2]
[422192235,1778675439000,-2481.09826505,8.664e-05,2]
[422192237,1778675439000,-1680.0,8.864e-05,2]
[422192242,1778675439000,-2489.5115578,9.123e-05,2]
[422192241,1778675439000,-2481.09826505,9.11e-05,2]
[422192243,1778675439000,-251.14791539,9.194e-05,2]
[422192244,1778675439000,-8381.987342,9.374e-05,2]
[422192246,1778675439000,-292.52238375,9.451e-05,2]
[422192245,1778675439000,-497.81146416,9.418e-05,2]
[422192248,1778675439000,-151.5,9.451e-05,2]
[422192265,1778675439000,-537.6845,9.486e-05,2]
[422192247,1778675439000,-151.5,9.451e-05,2]
[422192251,1778675439000,-236.34769206,9.451e-05,2]
[422192250,1778675439000,-151.5,9.451e-05,2]
[422192252,1778675439000,-151.5,9.451e-05,2]
[422192253,1778675439000,-151.5,9.451e-05,2]
[422192255,1778675439000,-151.5,9.451e-05,2]
[422192254,1778675439000,-163.97579235,9.451e-05,2]
[422192256,1778675439000,-151.5,9.451e-05,2]
[422192258,1778675439000,-500.0,9.451e-05,2]
[422192259,1778675439000,-151.5,9.451e-05,2]
[422192257,1778675439000,-151.5,9.451e-05,2]
[422192262,1778675439000,-393.01507182,9.451e-05,2]
[422192261,1778675439000,-500.0,9.451e-05,2]
[422192263,1778675439000,-537.6845,9.486e-05,2]
[422192264,1778675439000,-162.380719,9.486e-05,2]
[422192249,1778675439000,-151.5,9.451e-05,2]
[422192299,1778675439000,-189.85731787,9.726e-05,2]
[422192330,1778675439000,-864.0,9.948e-05,2]
[422192301,1778675439000,-587.0,9.75e-05,2]
[422192337,1778675439000,-189.51,0.0001,2]
[422192340,1778675439000,-2481.09826505,0.0001,2]
[422192339,1778675439000,-160.0,0.0001,2]
[422192338,1778675439000,-887.02389406,0.0001,2]
[422192342,1778675439000,-151.0,0.0001,2]
[422192343,1778675439000,-151.0,0.0001,2]
[422192341,1778675439000,-151.0,0.0001,2]
[422192344,1778675439000,-151.0,0.0001,2]
[422192346,1778675439000,-151.0,0.0001,2]
[422192345,1778675439000,-151.0,0.0001,2]
[422192347,1778675439000,-151.0,0.0001,2]
[422192349,1778675439000,-151.0,0.0001,2]
[422192350,1778675439000,-151.0,0.0001,2]
[422192348,1778675439000,-151.0,0.0001,2]
[422192335,1778675439000,-1085.06024928,0.0001,2]
[422192351,1778675439000,-151.0,0.0001,2]
[422192354,1778675439000,-557.5788265,0.00010036,2]
[422192356,1778675439000,-1003.13,0.000101,2]
[422192355,1778675439000,-197.45925728,0.00010061,2]
[422192357,1778675439000,-8381.987342,0.00010132,2]
[422192358,1778675439000,-170.6,0.00010182,2]
[422192359,1778675439000,-183.34,0.00010253,2]
[422192360,1778675439000,-174.49,0.00010276,2]
[422192362,1778675439000,-155.0,0.00010332,2]
[422192361,1778675439000,-327.3252785,0.00010305,2]
[422192363,1778675439000,-325.8415176,0.00010386,2]
[422192365,1778675439000,-250.0,0.00010411,2]
[422192364,1778675439000,-405.9738291,0.00010386,2]
[422192366,1778675439000,-8381.987342,0.0001051,2]
[422192300,1778675439000,-172.74706153,9.726e-05,2]
[422192353,1778675439000,-188.0,0.0001,2]
[422192336,1778675439000,-189.51,0.0001,2]
[422192352,1778675439000,-151.0,0.0001,2]
[422192332,1778675439000,-155.0,9.999e-05,2]
[422192334,1778675439000,-4001.22208968,0.0001,2]
[422192302,1778675439000,-2351.0,9.75e-05,2]
[422192305,1778675439000,-668.65185757,9.816e-05,2]
[422192303,1778675439000,-8381.987342,9.753e-05,2]
[422192306,1778675439000,-219.2542676,9.83e-05,2]
[422192308,1778675439000,-1172.8958396,9.83e-05,2]
[422192307,1778675439000,-9210.6518263,9.83e-05,2]
[422192310,1778675439000,-693.3919763,9.871e-05,2]
[422192309,1778675439000,-35834.91437335,9.831e-05,2]
[422192311,1778675439000,-500.0,9.899e-05,2]
[422192312,1778675439000,-213.36527978,9.899e-05,2]
[422192313,1778675439000,-500.0,9.899e-05,2]
[422192315,1778675439000,-500.0,9.899e-05,2]
[422192314,1778675439000,-500.0,9.899e-05,2]
[422192316,1778675439000,-587.24608621,9.899e-05,2]
[422192304,1778675439000,-644.79446246,9.761e-05,2]
[422192319,1778675439000,-500.0,9.899e-05,2]
[422192317,1778675439000,-500.0,9.899e-05,2]
[422192331,1778675439000,-745.65223616,9.981e-05,2]
[422192328,1778675439000,-33974.30068763,9.9e-05,2]
[422192329,1778675439000,-719.04747942,9.926e-05,2]
[422192325,1778675439000,-500.0,9.899e-05,2]
[422192326,1778675439000,-500.0,9.899e-05,2]
[422192327,1778675439000,-500.0,9.899e-05,2]
[422192333,1778675439000,-638502.25453437,0.0001,2]
[422192323,1778675439000,-500.0,9.899e-05,2]
[422192321,1778675439000,-500.0,9.899e-05,2]
[422192322,1778675439000,-500.0,9.899e-05,2]
[422192318,1778675439000,-500.0,9.899e-05,2]
[422192320,1778675439000,-500.0,9.899e-05,2]
[422192324,1778675439000,-500.0,9.899e-05,2]
[422192414,1778675440000,-502.737695,0.00010958,2]
[422192411,1778675440000,-500.0,0.00010958,2]
[422192412,1778675440000,-504.08102446,0.00010958,2]
[422192413,1778675440000,-500.0,0.00010958,2]
[422192403,1778675440000,-501.90137079,0.00010958,2]
[422192408,1778675440000,-504.11405262,0.00010958,2]
[422192407,1778675440000,-500.0,0.00010958,2]
[422192409,1778675440000,-500.0,0.00010958,2]
[422192406,1778675440000,-187.29570797,0.00010958,2]
[422192405,1778675440000,-500.0,0.00010958,2]
[422192404,1778675440000,-502.11166397,0.00010958,2]
[422192401,1778675440000,-500.0,0.00010958,2]
[422192415,1778675440000,-500.0,0.00010958,2]
[422192410,1778675440000,-500.0,0.00010958,2]
[422192416,1778675440000,-506.57676881,0.00010958,2]
[422192422,1778675440000,-726.22,0.00010958,2]
[422192419,1778675440000,-500.0,0.00010958,2]
[422192420,1778675440000,-500.0,0.00010958,2]
[422192418,1778675440000,-500.0,0.00010958,2]
[422192421,1778675440000,-502.02451335,0.00010958,2]
[422192423,1778675440000,-500.0,0.00010958,2]
[422192426,1778675440000,-457.89072622,0.00010958,2]
[422192427,1778675440000,-500.0,0.00010958,2]